Cogmind - Beta 14 @@@ ROGUE MODE // 2024.09.11 @ 20:21:40 Player: Daffa0360 Result: Self-destructed Performance ------------- Evolutions (7) 3500 Regions Visited (20) 4000 Robots Destroyed (111) 555 Value Destroyed (3924) 3924 Prototype IDs (58) 1160 Alien Tech Used (0) 0 Bonus (5324) 5324 TOTAL SCORE: 18463 Bonus ------- Triggered Max Security 1000 Follower Combat Kills 1199 Entered DSFs 500 Aligned with FarCom 300 Met R17 at Cetus 500 Met R17 at Research 2000 Friendly Fire -175 Cogmind --------- Core Integrity 554/1300 Matter 206/300 Energy 92/100 System Corruption 1% Temperature Cool (0) Movement Core (150) Ox2 Location -3/Testing Parts ------- > --- POWER (2) -------- (None) > --- PROPULSION (4) --- (None) > --- UTILITY (13) ----- Enhanced Optical Array Advanced Signal Interpreter 0b10 Alert Chip Experimental Targeting Computer Advanced Melee Analysis Suite Advanced Target Analyzer Armor Integrity Analyzer > --- WEAPON (2) ------- Enhanced Force Lance > --- INVENTORY (5) ---- Light Antimatter Reactor Improved Matter Compressor (300) Hypervelocity Railgun Linear Accelerator Advanced Remote Datajack Peak State ------------ > --- POWER ------------ Micro Antimatter Reactor > --- PROPULSION ------- Impulse Thruster Q-thruster Electron Diverter Electron Diverter > --- UTILITY ---------- Coolant Network Enhanced Optical Array Advanced Signal Interpreter 0b10 Alert Chip Experimental Targeting Computer Advanced Melee Analysis Suite Advanced Target Analyzer Armor Integrity Analyzer Force Booster Centrium Heavy Armor Plating Improved System Shield > --- WEAPON ----------- Hypervelocity Railgun Force Lance > --- INVENTORY -------- Light Antimatter Reactor Improved Matter Compressor Advanced Reaction Control System Linear Accelerator Advanced Remote Datajack [Rating: 142] Favorites ----------- Power Light Nuclear Core Engine Light Angular Momentum Engine Power Core Light Nuclear Core Reactor Quantum Reactor Propulsion Compact Wheel Treads Centrium Heavy Treads Leg Carbon-fiber Leg Wheel Compact Wheel Hover Unit Combat Linear Gravjet Flight Unit Improved Flight Unit Utility Visual Processing Unit Device Experimental Sensor Array Storage Medium Storage Unit Processor Visual Processing Unit Hackware Improved System Shield Protection Improved Light Armor Plating Weapon Enhanced Autogun Energy Gun Heavy Particle Gun Energy Cannon Proton Cannon Ballistic Gun Enhanced Autogun Ballistic Cannon Bore Cannon Launcher Rocket Launcher Special Weapon Advanced Remote Datajack Impact Weapon Heavy Mace Slashing Weapon Phasing Sabre Piercing Weapon Heavy Pick Special Melee Weapon Improved Datajack Build | -11 -10 -10 -9 -9 -9 -8 -8 -8 -8 -8 -6 -6 -6 -5 -5 -5 -4 -4 -3 -3 ------- Run | Yrd Mat Min Mat Min Exi Min Mat Sto Rec Scr Fac Ext Cet Fac Was Fac Fac DSF Res Tes Slots Evolved 14 | . . . 2 . . . 2 . . . 4 . . 2 . . 2 . 2 . Power 1 | . . . . . . . . . . . . . . . . . . . 1 . Propulsion 2 | . . . . . . . . . . . 1 . . . . . 1 . . . Utility 11 | . . . 2 . . . 2 . . . 3 . . 2 . . 1 . 1 . Weapon . | . . . . . . . . . . . . . . . . . . . . . Parts Attached 181 | . 3 7 27 5 1 3 9 18 . 1 12 32 7 3 4 13 . 2 25 9 Power 17 | . . 1 2 2 . . . 3 . . 1 3 1 . . 1 . . 2 1 Engine 8 | . . 1 2 2 . . . 1 . . . 2 . . . . . . . . Core 4 | . . . . . . . . 2 . . 1 1 . . . . . . . . Reactor 5 | . . . . . . . . . . . . . 1 . . 1 . . 2 1 Propulsion 39 | . 3 2 1 1 . . 4 3 . . 3 12 1 . 2 1 . . 4 2 Treads 2 | . 1 . . . . . . . . . . . 1 . . . . . . . Leg 11 | . . . . . . . . 2 . . . 9 . . . . . . . . Wheel 7 | . . 2 1 1 . . 2 . . . . 1 . . . . . . . . Hover 10 | . 2 . . . . . . . . . 3 2 . . 2 1 . . . . Flight 9 | . . . . . . . 2 1 . . . . . . . . . . 4 2 Utility 57 | . . 2 11 . 1 . 2 . . 1 5 5 2 3 . 8 . 1 12 4 Device 31 | . . 2 7 . . . 1 . . 1 2 . . 2 . 5 . 1 7 3 Storage 4 | . . . 1 . 1 . . . . . . 1 . . . . . . . 1 Processor 11 | . . . 2 . . . 1 . . . 3 . . 1 . 1 . . 3 . Hackware 1 | . . . . . . . . . . . . . . . . . . . 1 . Protection 10 | . . . 1 . . . . . . . . 4 2 . . 2 . . 1 . Artifact . | . . . . . . . . . . . . . . . . . . . . . Weapon 68 | . . 2 13 2 . 3 3 12 . . 3 12 3 . 2 3 . 1 7 2 Energy Gun 16 | . . 2 2 . . 1 . 6 . . 1 3 1 . . . . . . . Energy Cannon 2 | . . . . . . . . . . . 1 . . . . . . . 1 . Ballistic Gun 18 | . . . 5 1 . 1 1 4 . . . 1 1 . 2 . . . 2 . Ballistic Cannon 6 | . . . 2 . . . . . . . . 1 . . . . . 1 2 . Launcher 5 | . . . . . . . . 1 . . . 3 1 . . . . . . . Special Weapon 1 | . . . . . . . . . . . . . . . . . . . 1 . Impact Weapon 10 | . . . 4 1 . 1 2 1 . . . . . . . 1 . . . . Slashing Weapon 5 | . . . . . . . . . . . 1 2 . . . 2 . . . . Piercing Weapon 4 | . . . . . . . . . . . . 1 . . . . . . 1 2 Special Melee Weapon 1 | . . . . . . . . . . . . 1 . . . . . . . . Unidentified Prototypes 28 | . . 1 2 . . . . 5 . . 1 1 4 . . 1 . . 6 7 Parts Lost 61 | . . 4 8 . . 1 1 8 . . . 13 1 . 5 2 . 11 . 7 Power 11 | . . 1 3 . . . . 3 . . . 1 . . 1 1 . . . 1 Propulsion 20 | . . 2 2 . . 1 1 3 . . . 5 . . . . . 3 . 3 Utility 16 | . . . . . . . . 1 . . . 3 . . 2 1 . 6 . 3 Weapon 14 | . . 1 3 . . . . 1 . . . 4 1 . 2 . . 2 . . Highest Loss Streak 11 | . . 3 3 . . 1 1 5 . . . 5 1 . 4 1 . 11 . 7 To Critical Strikes 1 | . . . . . . . . . . . . . . . . . . . . 1 Average Slot Usage (%) 86 | . 83 78 89 80 100 97 84 87 90 90 89 91 93 93 62 79 73 67 60 77 Engine 3 | . 14 6 10 3 11 11 9 . . . . 3 . . . . . . . . Core 2 | . . . . . . . . 7 9 9 6 1 . . . . . . . . Leg 4 | . 5 . . . . . . 6 9 9 . 11 8 5 2 . . . . . Wheel 5 | . . 26 18 11 22 19 7 . . . . . . . . . . . . . Hover 2 | . 21 . . . . . . . . . 12 4 . . . 12 15 12 . . Flight 2 | . . . . . . . 3 9 9 9 1 . . . . . . . 12 17 Device 9 | . . 3 6 11 11 11 10 10 9 9 18 6 . 10 6 19 15 15 10 12 Storage 8 | . 14 14 11 11 11 11 9 9 9 9 6 8 13 11 6 . . . . . Processor 25 | . . . 14 22 22 22 26 27 27 27 31 33 33 29 26 28 26 26 28 33 Protection 3 | . . . 5 . . . . . . . . 7 12 11 4 7 10 8 . . Energy Gun 5 | . . 12 2 9 . 11 9 7 9 9 . 2 6 5 2 . . . . . Ballistic Gun 6 | . 28 15 14 2 11 10 2 8 9 9 6 . 5 5 2 . . . 2 . Impact Weapon 1 | . . . 3 10 11 . 6 1 . . . . . . . . . . . . Slashing Weapon 1 | . . . . . . . . . . . 3 5 . . . 3 5 4 . . Peak Build Rating 142 | 6 7 16 26 30 32 30 44 47 31 32 58 72 100 112 113 89 83 89 142 139 Average Rating 47 | 6 6 8 20 24 30 29 36 31 31 31 53 59 94 108 74 80 83 76 95 122 On Entrance 46 | 6 6 7 8 23 30 30 29 44 31 31 32 58 72 100 112 40 83 83 27 131 Naked Turns . | . . . . . . . . . . . . . . . . . . . . . Heaviest Build 61 | 12 12 13 27 26 26 26 26 28 21 21 25 46 60 61 61 42 23 25 35 31 Greatest Support 80 | 20 20 32 32 32 32 32 26 18 10 19 37 48 80 80 80 41 41 41 31 31 Greatest Overweight (x) 9 | . 1 2 1 1 . 1 8 6 2 2 1 9 1 . 1 7 7 7 1 1 Average Overweight (x) . | . . . . . . . 1 1 2 1 . . . . . . . . . . Largest Inventory Capacity 10 | 8 8 8 10 10 10 10 10 10 10 10 10 10 10 10 10 5 5 5 5 5 Average Capacity 9 | 8 8 8 9 10 10 10 10 10 10 10 10 10 10 10 7 5 5 5 5 5 Most Carried 10 | 7 8 8 10 10 10 10 10 10 9 10 10 10 10 10 10 5 5 5 5 5 Average Carried 8 | 6 6 6 8 9 9 10 9 8 9 9 9 9 9 9 7 4 5 4 4 5 Final Capacity 10 | 8 8 8 10 10 10 10 10 10 10 10 10 10 10 10 5 5 5 5 5 5 Final Carried 10 | 7 8 7 8 10 10 10 10 9 9 10 10 10 10 10 5 5 5 5 5 5 Class Distribution -------------------- 18% | Assassin 14% | Mutant 14% | Commander-Mutant 11% | Gladiator 9% | Skirmisher 8% | Scavenger-Skirmisher 6% | Scout 4% | Commander-Skirmisher Dominant Class ---------------- Mutant | -10/Materials Mutant | -10/Mines Mutant | -9/Materials Assassin | -9/Mines Assassin | -9/Exiles Skirmisher | -8/Mines Assassin | -8/Materials Commander-Skirmisher | -8/Storage Commander-Skirmisher | -8/Recycling Commander-Mutant | -8/Scraptown Infiltrator-Ninja | -6/Factory Gladiator | -6/Extension Scavenger-Skirmisher | -6/Cetus Scavenger-Skirmisher | -5/Factory Scavenger-Skirmisher | -5/Waste Gladiator | -5/Factory Gladiator | -4/Factory Gladiator | -4/DSF Scout | -3/Research Scout | -3/Testing Resources | -11 -10 -10 -9 -9 -9 -8 -8 -8 -8 -8 -6 -6 -6 -5 -5 -5 -4 -4 -3 -3 ----------- Run | Yrd Mat Min Mat Min Exi Min Mat Sto Rec Scr Fac Ext Cet Fac Was Fac Fac DSF Res Tes Matter Collected 3056 | 218 . 249 595 67 . 79 130 226 48 42 123 537 137 52 . 145 . 83 317 8 Remotely . | . . . . . . . . . . . . . . . . . . . . . Salvage Created 5378 | 107 11 487 811 . . 171 522 689 . . 117 1522 152 117 293 234 . 134 11 . Parts 232 | 4 2 24 45 . . 14 20 36 . . 1 64 5 4 1 8 . 4 . . Haulers Intercepted 9 | . . . 4 . . . 2 1 . . 1 1 . . . . . . . . Recyclers Shooed . | . . . . . . . . . . . . . . . . . . . . . Parts Field Recycled . | . . . . . . . . . . . . . . . . . . . . . Retrieved Matter . | . . . . . . . . . . . . . . . . . . . . . Parts Self-Destructed . | . . . . . . . . . . . . . . . . . . . . . Prevented . | . . . . . . . . . . . . . . . . . . . . . Kills | -11 -10 -10 -9 -9 -9 -8 -8 -8 -8 -8 -6 -6 -6 -5 -5 -5 -4 -4 -3 -3 ------- Run | Yrd Mat Min Mat Min Exi Min Mat Sto Rec Scr Fac Ext Cet Fac Was Fac Fac DSF Res Tes Combat Hostiles Destroyed 86 | . 1 13 16 1 . 8 2 13 . . . 21 3 2 1 3 . 2 . . Melee 18 | . . . . . . . . . . . . 14 . . . 3 . 1 . . Guns 59 | . 1 13 15 1 . 6 2 10 . . . 5 3 2 1 . . . . . Cannons 3 | . . . 1 . . . . . . . . 1 . . . . . 1 . . AOE 6 | . . . . . . 2 . 3 . . . 1 . . . . . . . . Classes Destroyed 18 | 2 1 1 4 1 . 1 1 2 . . . 2 1 . 1 . . 1 . . Worker 2 | . . . . . . . 1 . . . . 1 . . . . . . . . Builder 1 | . . . . . . . . . . . . 1 . . . . . . . . Tunneler 2 | 1 . 1 . . . . . . . . . . . . . . . . . . Hauler 9 | . . . 4 . . . 2 1 . . 1 1 . . . . . . . . Recycler 6 | 1 . . . . . . 4 . . . . 1 . . . . . . . . Mechanic 1 | . . . . . . . . 1 . . . . . . . . . . . . Watcher 4 | . . . 2 . . . . . . . . . . . . 1 . . 1 . Swarmer 18 | . 1 3 4 . . 7 . 2 . . . 1 . . . . . . . . Grunt 29 | . . 10 7 . . . 1 7 . . . 4 . . . . . . . . Brawler 1 | . . . . . . . . 1 . . . . . . . . . . . . Duelist 6 | . . . 1 . . . . 1 . . . 4 . . . . . . . . Sentry 17 | . . . 4 . . . 1 2 . . . 9 . . . 1 . . . . Specialist 2 | . . . . . . . . . . . . . . . . . . 2 . . Hunter 1 | . . . . . . 1 . . . . . . . . . . . . . . Programmer 5 | . . . . . . . . . . . . . 1 2 . 2 . . . . Behemoth 2 | . . . . . . . . . . . . 2 . . . . . . . . Compactor 1 | . . . . . . . . . . . . . . . 1 . . . . . Cetus Guard 2 | . . . . . . . . . . . . . 2 . . . . . . . Assembled 1 | . . . . 1 . . . . . . . . . . . . . . . . Thug 2 | . . . . . . . . 1 . . . 1 . . . . . . . . Best Kill Streak 5 | 2 1 5 4 1 . 5 3 5 . . 1 3 2 2 1 1 . 1 1 . Combat Bots Only 5 | . 1 5 4 1 . 5 2 4 . . . 3 2 2 1 1 . 1 . . Max Kills in Single Turn 4 | 1 1 2 1 1 . 2 1 4 . . 1 2 1 1 1 1 . 1 1 . Gunslinging . | . . . . . . . . . . . . . . . . . . . . . Exploded 3 | . . . . . . 2 . 3 . . . 1 . . . . . . . . Melee 1 | . . . . . . . . . . . . 1 . . . 1 . 1 . . Uniques/NPCs Destroyed . | . . . . . . . . . . . . . . . . . . . . . Combat | -11 -10 -10 -9 -9 -9 -8 -8 -8 -8 -8 -6 -6 -6 -5 -5 -5 -4 -4 -3 -3 -------- Run | Yrd Mat Min Mat Min Exi Min Mat Sto Rec Scr Fac Ext Cet Fac Was Fac Fac DSF Res Tes Hostile Shots Fired 1029 | . 18 53 97 3 . 21 11 94 . . 22 398 25 16 10 30 . 140 19 72 Missed 348 | . 9 12 31 1 . 11 2 30 . . 11 170 6 5 . 5 . 32 3 20 Damage Taken 10041 | . 83 472 916 28 . 92 142 1037 . . 111 2415 455 225 455 436 . 1443 345 1386 Core 2932 | . 24 119 176 . . 13 64 266 . . 12 636 51 . 132 54 . 639 110 636 Absorbed by Shields 90 | . . . . . . . . . . . . . . . . 90 . . . . Redirected to Shielding 31 | . . . 31 . . . . . . . . . . . . . . . . . Ignored by Resistances 12 | . . . . . . . . . . . . . . . . 6 . . . 6 Regen/Repaired (Parts) 252 | . . . 132 . . . . . . . 120 . . . . . . . . . Core Remaining (%) 53 | 100 . 42 . . . 52 . . . 40 . . 17 . . 81 . 44 . . Volleys Fired 324 | 3 3 34 75 3 . 8 15 48 1 . 7 60 25 8 15 . . 12 7 . Largest 2 | 2 2 2 2 1 . 2 2 2 2 . 2 2 2 2 2 . . 1 1 . Hottest 115 | 40 40 85 100 23 . 68 68 88 80 . 80 90 115 115 115 . . 57 40 . Shots Fired 514 | 6 6 68 141 3 . 16 21 64 2 . 12 83 37 12 24 . . 12 7 . Gun 476 | 6 6 68 126 3 . 16 21 60 2 . 12 76 37 12 24 . . . 7 . Cannon 28 | . . . 15 . . . . . . . . 1 . . . . . 12 . . Launcher 10 | . . . . . . . . 4 . . . 6 . . . . . . . . Special . | . . . . . . . . . . . . . . . . . . . . . Kinetic 341 | 6 6 52 122 3 . 8 15 29 1 . 5 34 18 8 15 . . 12 7 . Thermal 148 | . . 16 18 . . . . 31 1 . 7 43 19 4 9 . . . . . Explosive 10 | . . . . . . . . 4 . . . 6 . . . . . . . . Electromagnetic 15 | . . . 1 . . 8 6 . . . . . . . . . . . . . Robot Hit Streak 16 | 4 1 8 10 5 . 7 6 14 2 . 8 8 8 2 12 . . 16 1 . Robot Miss Streak 7 | 1 2 3 5 1 . 4 3 3 . . 1 7 3 2 1 . . 2 1 . Penetration Max 1 | . . . . . . . . . . . . 1 . . . . . . 1 . Secondary Targets 7 | . . 3 1 . . 1 . 1 . . . . 1 . . . . . . . Max Gunslinging Chain 1 | . . 1 1 . . 1 . 1 . . . . 1 . . . . . . . Shots Hit Robots 444 | 4 2 46 91 2 . 9 21 42 2 . 9 128 25 6 22 11 . 14 3 7 Core Hits 185 | 3 1 20 32 1 . 8 8 35 . . 2 46 9 3 5 5 . 4 . 3 Critical Kills 1 | . . . . . . . 1 . . . . . . . . . . . . . Critical Parts Destroyed 9 | . . 2 1 . . . . . . . . 2 2 1 . . . . 1 . Critical Strikes 30 | . . 3 1 . . . 1 . . . . 11 3 1 2 1 . 4 1 2 Burn 4 | . . 1 . . . . . . . . . 3 . . . . . . . . Destroy 12 | . . 2 1 . . . . . . . . 2 3 1 2 . . . 1 . Blast 1 | . . . . . . . . . . . . . . . . . . 1 . . Smash 1 | . . . . . . . 1 . . . . . . . . . . . . . Sever 8 | . . . . . . . . . . . . 4 . . . 1 . 3 . . Impale 4 | . . . . . . . . . . . . 2 . . . . . . . 2 Melee Attacks 179 | . . . 11 4 . 1 22 2 . . . 93 . . . 18 5 11 . 12 Impact 41 | . . . 11 4 . 1 22 2 . . . . . . . 1 . . . . Slashing 76 | . . . . . . . . . . . . 43 . . . 17 5 11 . . Piercing 31 | . . . . . . . . . . . . 19 . . . . . . . 12 Sneak Attacks 42 | . . . . . . . 6 . . . . 35 . . . . . 1 . . Combat Hostiles 3 | . . . . . . . . . . . . 2 . . . . . 1 . . Follow-up Attacks 1 | . . . . . . . . . . . . 1 . . . . . . . . Damage Inflicted 12104 | 50 31 600 1426 27 . 184 721 1617 37 . 163 3935 764 211 644 578 . 639 48 429 Guns 5985 | 50 24 600 1256 26 . 120 199 880 37 . 163 963 764 211 644 . . . 48 . Cannons 613 | . . . 170 . . . . . . . . 61 . . . . . 382 . . Explosions 1252 | . . . . . . 64 . 689 . . . 499 . . . . . . . . Melee 4246 | . . . . . . . 522 48 . . . 2412 . . . 578 . 257 . 429 Ramming 8 | . 7 . . 1 . . . . . . . . . . . . . . . . Kinetic 3942 | 50 24 428 1212 26 . 42 99 341 18 . 87 305 365 131 384 . . 382 48 . Thermal 2523 | . . 172 195 . . 64 . 539 19 . 76 719 399 80 260 . . . . . Explosive 1188 | . . . . . . . . 689 . . . 499 . . . . . . . . Electromagnetic 197 | . . . 19 . . 78 100 . . . . . . . . . . . . . Impact 570 | . . . . . . . 522 48 . . . . . . . . . . . . Slashing 2624 | . . . . . . . . . . . . 1789 . . . 578 . 257 . . Piercing 1052 | . . . . . . . . . . . . 623 . . . . . . . 429 Highest Corruption 7 | . . . . . . . . . . . . . . 1 1 7 . . . 1 Average Corruption 1 | . . . . . . . . . . . . . . 1 1 1 . . . 1 Corruption Purged 2 | . . . . . . . . . . . . . . . . 2 . . . . Corruption Blocked . | . . . . . . . . . . . . . . . . . . . . . Effects 4 | . . . . . . . . . . . . . . . . 4 . . . . Message Errors 2 | . . . . . . . . . . . . . . . . 2 . . . . Matter Fused 1 | . . . . . . . . . . . . . . . . 1 . . . . Energy Discharges 1 | . . . . . . . . . . . . . . . . 1 . . . . Overload Shots . | . . . . . . . . . . . . . . . . . . . . . Overflow Damage 317 | . . . 6 . . . 105 16 . . . 149 . . . 41 . . . . Projectiles 6 | . . . 6 . . . . . . . . . . . . . . . . . Explosions 16 | . . . . . . . . 16 . . . . . . . . . . . . Melee 295 | . . . . . . . 105 . . . . 149 . . . 41 . . . . Knockbacks 7 | . . . . . . . . . . . . . . . . . . 7 . . Impact . | . . . . . . . . . . . . . . . . . . . . . Kinetic 7 | . . . . . . . . . . . . . . . . . . 7 . . Secondary . | . . . . . . . . . . . . . . . . . . . . . Self-Inflicted Damage 9 | . 3 . . . . 6 . . . . . . . . . . . . . . Shots 1 | . . . . . . 1 . . . . . . . . . . . . . . Rammed 2 | . 1 . . 1 . . . . . . . . . . . . . . . . Targets Rammed 2 | . 1 . . 1 . . . . . . . . . . . . . . . . Kicked . | . . . . . . . . . . . . . . . . . . . . . Crushed . | . . . . . . . . . . . . . . . . . . . . . Highest Temperature 323 | . 11 54 185 . . 24 53 323 32 . 68 261 281 108 216 . . 13 . . Average Temperature 70 | . 11 15 55 . . 7 30 99 18 . 29 80 103 53 84 . . 8 . . Received Heat Transfer 2538 | . 42 228 342 . . . 81 396 . . 42 681 27 . . 36 . 642 . 21 Effects 8 | . . . . . . . . 4 . . . 2 2 . . . . . . . Energy Bleed 1 | . . . . . . . . 1 . . . . . . . . . . . . Interference 7 | . . . . . . . . 3 . . . 2 2 . . . . . . . Siege Activations . | . . . . . . . . . . . . . . . . . . . . . Robots Corrupted 2 | . . . . . . . 2 . . . . . . . . . . . . . Combat Hostiles . | . . . . . . . . . . . . . . . . . . . . . Parts Fried 5 | . . . . . . . 5 . . . . . . . . . . . . . Impact Corruptions 5 | . . . . . . . 5 . . . . . . . . . . . . . Robots Melted 1 | . . . . . . . . . . . . 1 . . . . . . . . Combat Hostiles . | . . . . . . . . . . . . . . . . . . . . . Parts Melted 1 | . . . . . . . . . . . . . 1 . . . . . . . Heat Transferred 4159 | . . 470 444 . . 100 . 777 37 . 148 1295 481 74 333 . . . . . Parts Sabotaged 1 | . . . . . . . . . . . . . . . . . . . . 1 Parts Stolen . | . . . . . . . . . . . . . . . . . . . . . Parts Stripped . | . . . . . . . . . . . . . . . . . . . . . Power Chain Reactions 1 | . . . . . . 1 . . . . . . . . . . . . . . Alert | -11 -10 -10 -9 -9 -9 -8 -8 -8 -8 -8 -6 -6 -6 -5 -5 -5 -4 -4 -3 -3 ------- Run | Yrd Mat Min Mat Min Exi Min Mat Sto Rec Scr Fac Ext Cet Fac Was Fac Fac DSF Res Tes Peak Influence 1714 | 10 142 230 286 112 . 125 46 257 27 . 38 319 322 73 24 88 26 40 32 1714 Initial 178 | . 6 55 7 91 . . . 5 15 . . 18 178 25 . 16 18 18 6 13 Average 79 | 7 46 105 131 21 . 54 13 100 12 . 14 49 154 19 6 31 21 28 9 1621 Maximum Alert Level 5 | . . 1 1 . . . . 1 . . . 1 1 . . . . . . 5 Low Security (%) 91 | 100 100 72 87 100 . 100 100 76 100 . 100 98 61 100 100 100 100 100 100 . Level 1 7 | . . 27 12 . . . . 23 . . . 1 38 . . . . . . . Level 2 . | . . . . . . . . . . . . . . . . . . . . . Level 3 . | . . . . . . . . . . . . . . . . . . . . . Level 4 . | . . . . . . . . . . . . . . . . . . . . . Level 5 . | . . . . . . . . . . . . . . . . . . . . . High Security . | . . . . . . . . . . . . . . . . . . . . . Max Security 1 | . . . . . . . . . . . . . . . . . . . . 99 Squads Dispatched 34 | . . . . 1 . . . 3 . . 5 3 . 1 1 1 . 2 5 12 Investigation 7 | . . . . . . . . . . . 2 2 . . . . . . 3 . Extermination 2 | . . . . . . . . . . . . . . 1 . 1 . . . . Reinforcement 9 | . . . . . . . . 1 . . 3 1 . . . . . 2 2 . Assault 16 | . . . . 1 . . . 2 . . . . . . 1 . . . . 12 Garrison . | . . . . . . . . . . . . . . . . . . . . . Intercept . | . . . . . . . . . . . . . . . . . . . . . Searches Triggered . | . . . . . . . . . . . . . . . . . . . . . Construction Impeded 2 | . . . . . . . . 1 . . . 1 . . . . . . . . Haulers Reinforced 1 | . . . . . . . . . . . . . . . . . . . 1 . Active Scanning Responses . | . . . . . . . . . . . . . . . . . . . . . Cargo Convoy Interrupts . | . . . . . . . . . . . . . . . . . . . . . Stealth | -11 -10 -10 -9 -9 -9 -8 -8 -8 -8 -8 -6 -6 -6 -5 -5 -5 -4 -4 -3 -3 --------- Run | Yrd Mat Min Mat Min Exi Min Mat Sto Rec Scr Fac Ext Cet Fac Was Fac Fac DSF Res Tes Distress Signals 16 | . 1 . 1 . . . . 1 . . 1 4 2 . . 2 . . 4 . Communications Jammed . | . . . . . . . . . . . . . . . . . . . . . Distress Signals . | . . . . . . . . . . . . . . . . . . . . . Times Spotted 234 | . 13 14 32 2 . 8 6 24 1 . 8 48 14 2 6 13 . 10 4 29 Peak Tracking Total 25 | . 10 5 5 1 . 5 2 9 . . 4 5 5 2 5 5 . 6 2 25 Tactical Retreats 24 | . 1 1 4 1 . . . 1 . . 5 6 . . . 1 . 1 . 3 Traps | -11 -10 -10 -9 -9 -9 -8 -8 -8 -8 -8 -6 -6 -6 -5 -5 -5 -4 -4 -3 -3 ------- Run | Yrd Mat Min Mat Min Exi Min Mat Sto Rec Scr Fac Ext Cet Fac Was Fac Fac DSF Res Tes Traps Triggered 5 | . . . . . . . . . . . 1 2 . 1 . 1 . . . . Indirectly . | . . . . . . . . . . . . . . . . . . . . . Trap Hack Attempts . | . . . . . . . . . . . . . . . . . . . . . Triggered . | . . . . . . . . . . . . . . . . . . . . . Disarmed . | . . . . . . . . . . . . . . . . . . . . . Reprogrammed . | . . . . . . . . . . . . . . . . . . . . . Reused . | . . . . . . . . . . . . . . . . . . . . . Traps Extracted . | . . . . . . . . . . . . . . . . . . . . . Installed . | . . . . . . . . . . . . . . . . . . . . . Triggered . | . . . . . . . . . . . . . . . . . . . . . Machines | -11 -10 -10 -9 -9 -9 -8 -8 -8 -8 -8 -6 -6 -6 -5 -5 -5 -4 -4 -3 -3 ---------- Run | Yrd Mat Min Mat Min Exi Min Mat Sto Rec Scr Fac Ext Cet Fac Was Fac Fac DSF Res Tes Machines Disabled 8 | . . . 1 . . . . 2 . . . 3 1 . . . . . . 1 Max in Single Turn 1 | . . . 1 . . . . 1 . . . 1 1 . . . . . . 1 Machines Repaired . | . . . . . . . . . . . . . . . . . . . . . Machines Dismantled . | . . . . . . . . . . . . . . . . . . . . . Machines Sabotaged . | . . . . . . . . . . . . . . . . . . . . . Overloaded Fab Kills . | . . . . . . . . . . . . . . . . . . . . . Hacking | -11 -10 -10 -9 -9 -9 -8 -8 -8 -8 -8 -6 -6 -6 -5 -5 -5 -4 -4 -3 -3 --------- Run | Yrd Mat Min Mat Min Exi Min Mat Sto Rec Scr Fac Ext Cet Fac Was Fac Fac DSF Res Tes Machines Accessed 42 | . 1 . 11 . 1 . 3 6 1 . 5 3 3 . . 2 1 . 5 . Terminals 33 | . 1 . 9 . . . 2 6 1 . 2 3 3 . . 1 1 . 4 . Fabricators 4 | . . . . . . . . . . . 2 . . . . 1 . . 1 . Repair Stations 2 | . . . 1 . . . . . . . 1 . . . . . . . . . Recycling Units . | . . . . . . . . . . . . . . . . . . . . . Scanalyzers 2 | . . . 1 . . . 1 . . . . . . . . . . . . . Garrison Access . | . . . . . . . . . . . . . . . . . . . . . Total Hacks 98 | . 2 . 28 . 1 . 11 15 3 . 13 6 6 . . 3 2 . 8 . Successful 48 | . 2 . 13 . 1 . 4 8 3 . 6 4 2 . . 1 1 . 3 . Failed 50 | . . . 15 . . . 7 7 . . 7 2 4 . . 2 1 . 5 . Catastrophic 13 | . . . 2 . . . 2 2 . . 1 . 3 . . . . . 3 . Database Lockouts . | . . . . . . . . . . . . . . . . . . . . . Manual 12 | . . . 5 . 1 . 2 1 1 . 1 . . . . . . . 1 . Terminals 80 | . 2 . 22 . . . 9 15 3 . 6 6 6 . . 2 2 . 7 . Fabricators 5 | . . . . . . . . . . . 3 . . . . 1 . . 1 . Repair Stations 8 | . . . 4 . . . . . . . 4 . . . . . . . . . Recycling Units . | . . . . . . . . . . . . . . . . . . . . . Scanalyzers 4 | . . . 2 . . . 2 . . . . . . . . . . . . . Garrison Access . | . . . . . . . . . . . . . . . . . . . . . Terminal Hacks 36 | . 2 . 8 . 1 . 2 8 3 . 2 4 2 . . 1 1 . 2 . Record 4 | . . . . . . . . 1 . . . . 2 . . . . . 1 . Prototype ID Bank 5 | . . . 2 . . . 1 . 1 . . 1 . . . . . . . . Open Door 5 | . . . . . . . . 2 . . 1 2 . . . . . . . . Open DSF 1 | . . . . . . . . . . . . . . . . . 1 . . . Level Access Points 1 | . . . . . . . . . . . . . . . . 1 . . . . Branch Access Points 1 | . . . . . . . . . . . . . . . . . . . 1 . Emergency Access Points 1 | . 1 . . . . . . . . . . . . . . . . . . . Alert Level 3 | . . . 1 . . . . 2 . . . . . . . . . . . . Unreport Threat 4 | . . . 1 . . . . 2 1 . . . . . . . . . . . Locate Traps 3 | . . . 1 . . . . 1 . . 1 . . . . . . . . . Dispatch Records 1 | . . . . . . . 1 . . . . . . . . . . . . . Surveillance Status 2 | . . . 1 . . . . . . . . 1 . . . . . . . . Hauler Manifests 2 | . 1 . . . . . . . 1 . . . . . . . . . . . Registered Components 1 | . . . 1 . . . . . . . . . . . . . . . . . Zone Layout 1 | . . . 1 . . . . . . . . . . . . . . . . . Derelict Proto ID Bank 1 | . . . . . 1 . . . . . . . . . . . . . . . Fabricator Hacks 2 | . . . . . . . . . . . 1 . . . . . . . 1 . Network Status 2 | . . . . . . . . . . . 1 . . . . . . . 1 . Repair Station Hacks 7 | . . . 4 . . . . . . . 3 . . . . . . . . . Scan Component 4 | . . . 2 . . . . . . . 2 . . . . . . . . . Repair 3 | . . . 2 . . . . . . . 1 . . . . . . . . . Recycling Unit Hacks . | . . . . . . . . . . . . . . . . . . . . . Scanalyzer 2 | . . . 1 . . . 1 . . . . . . . . . . . . . Insert Component 2 | . . . 1 . . . 1 . . . . . . . . . . . . . Garrison Access Hacks . | . . . . . . . . . . . . . . . . . . . . . Unauthorized Hacks 1 | . . . . . . . 1 . . . . . . . . . . . . . Terminals 1 | . . . . . . . 1 . . . . . . . . . . . . . Assimilate 1 | . . . . . . . 1 . . . . . . . . . . . . . Fabricators . | . . . . . . . . . . . . . . . . . . . . . Repair Stations . | . . . . . . . . . . . . . . . . . . . . . Recycling Units . | . . . . . . . . . . . . . . . . . . . . . Scanalyzers . | . . . . . . . . . . . . . . . . . . . . . Garrison Access . | . . . . . . . . . . . . . . . . . . . . . Data Cores Recovered . | . . . . . . . . . . . . . . . . . . . . . Used . | . . . . . . . . . . . . . . . . . . . . . Hacking Detections 34 | . . . 8 . . . 3 6 . . 5 1 3 . . 2 1 . 5 . Full Trace Events 1 | . . . . . . . . . . . 1 . . . . . . . . . Feedback Events . | . . . . . . . . . . . . . . . . . . . . . Feedback Blocked . | . . . . . . . . . . . . . . . . . . . . . Robot Schematics Acquired . | . . . . . . . . . . . . . . . . . . . . . Robots Built . | . . . . . . . . . . . . . . . . . . . . . Authchips . | . . . . . . . . . . . . . . . . . . . . . Time . | . . . . . . . . . . . . . . . . . . . . . Total Robot Build Rating . | . . . . . . . . . . . . . . . . . . . . . Part Schematics Acquired . | . . . . . . . . . . . . . . . . . . . . . Parts Built . | . . . . . . . . . . . . . . . . . . . . . Authchips . | . . . . . . . . . . . . . . . . . . . . . Time . | . . . . . . . . . . . . . . . . . . . . . Total Part Build Rating . | . . . . . . . . . . . . . . . . . . . . . Parts Repaired 3 | . . . 2 . . . . . . . 1 . . . . . . . . . Time 259 | . . . 159 . . . . . . . 100 . . . . . . . . . Parts Recycled . | . . . . . . . . . . . . . . . . . . . . . Recycled Matter . | . . . . . . . . . . . . . . . . . . . . . Retrieved Matter . | . . . . . . . . . . . . . . . . . . . . . Retrieved Components . | . . . . . . . . . . . . . . . . . . . . . Parts Scanalyzed 2 | . . . 1 . . . 1 . . . . . . . . . . . . . Part Schematics Acquired . | . . . . . . . . . . . . . . . . . . . . . Parts Damaged . | . . . . . . . . . . . . . . . . . . . . . Bothacking | -11 -10 -10 -9 -9 -9 -8 -8 -8 -8 -8 -6 -6 -6 -5 -5 -5 -4 -4 -3 -3 ------------ Run | Yrd Mat Min Mat Min Exi Min Mat Sto Rec Scr Fac Ext Cet Fac Was Fac Fac DSF Res Tes Used RIF Installer . | . . . . . . . . . . . . . . . . . . . . . Robots Hacked . | . . . . . . . . . . . . . . . . . . . . . Non-combat . | . . . . . . . . . . . . . . . . . . . . . Combat . | . . . . . . . . . . . . . . . . . . . . . Robot Hacks Applied . | . . . . . . . . . . . . . . . . . . . . . Relay Couplers Released . | . . . . . . . . . . . . . . . . . . . . . Fabnet Peak Effective % . | . . . . . . . . . . . . . . . . . . . . . Robots Rewired 11 | . . . . . . . . . . . . 11 . . . . . . . . Allies Hacked . | . . . . . . . . . . . . . . . . . . . . . Hacks Repelled . | . . . . . . . . . . . . . . . . . . . . . Allies | -11 -10 -10 -9 -9 -9 -8 -8 -8 -8 -8 -6 -6 -6 -5 -5 -5 -4 -4 -3 -3 -------- Run | Yrd Mat Min Mat Min Exi Min Mat Sto Rec Scr Fac Ext Cet Fac Was Fac Fac DSF Res Tes Total Allies 30 | . . . . 1 . . . 12 . . . 13 . . 1 . . . 3 . Largest Group 11 | . . . . 1 . . . 10 9 9 9 11 6 . 1 . . . 3 . Highest-Rated Group 324 | . . . . 31 . . . 173 137 137 137 324 191 . 31 . . . 138 . Highest-Rated Ally 46 | . . . . 31 . . . 31 29 29 29 39 39 . 31 . . . 46 . Total Orders 13 | . . . . . . . . . . . 10 . 3 . . . . . . . STAY 4 | . . . . . . . . . . . 1 . 3 . . . . . . . ROAM 9 | . . . . . . . . . . . 9 . . . . . . . . . Ally Attacks 189 | . . . . 5 . . . 25 5 . 17 76 51 . 10 . . . . . Total Damage 3390 | . . . . 105 . . . 386 72 . 176 1636 846 . 169 . . . . . Kills 30 | . . . . 1 . . . 5 1 . 1 15 7 . . . . . . . Allies Corrupted . | . . . . . . . . . . . . . . . . . . . . . Allies Melted . | . . . . . . . . . . . . . . . . . . . . . Intel | -11 -10 -10 -9 -9 -9 -8 -8 -8 -8 -8 -6 -6 -6 -5 -5 -5 -4 -4 -3 -3 ------- Run | Yrd Mat Min Mat Min Exi Min Mat Sto Rec Scr Fac Ext Cet Fac Was Fac Fac DSF Res Tes Robot Analysis Total . | . . . . . . . . . . . . . . . . . . . . . Derelict Logs Recovered 3 | . . 1 . 2 . . . . . . . . . . . . . . . . Drone Launches . | . . . . . . . . . . . . . . . . . . . . . Drone Recoveries . | . . . . . . . . . . . . . . . . . . . . . Exploration | -11 -10 -10 -9 -9 -9 -8 -8 -8 -8 -8 -6 -6 -6 -5 -5 -5 -4 -4 -3 -3 ------------- Run | Yrd Mat Min Mat Min Exi Min Mat Sto Rec Scr Fac Ext Cet Fac Was Fac Fac DSF Res Tes Turns Passed 19162 | 24 96 983 1924 1704 284 869 830 875 544 2743 768 2926 993 591 285 1077 399 279 755 213 Spaces Moved 11622 | 12 101 488 1334 925 276 561 514 281 205 1087 857 1630 558 242 228 615 52 125 1169 362 Core 341 | . . 18 . . . . 23 11 . . . 41 . . 109 3 2 49 85 . Treads 776 | . . . . . . . . . . . . . 466 242 68 . . . . . Legs 2671 | 12 16 . . . . . . 207 205 1087 9 1043 92 . . . . . . . Wheels 4008 | . . 469 1334 925 276 561 392 . . . . 51 . . . . . . . . Hover 2218 | . 85 1 . . . . . . . . 848 495 . . 51 612 50 76 . . Flight 1608 | . . . . . . . 99 63 . . . . . . . . . . 1084 362 Fastest Speed 28 | 120 56 56 90 100 100 100 90 37 260 190 46 51 120 160 50 59 59 50 28 28 Average Speed 121 | 120 66 101 101 114 100 104 124 229 260 250 51 137 161 160 86 103 128 119 51 28 Slowest Speed 500 | 120 120 150 115 115 100 115 450 350 260 260 190 500 190 160 160 400 400 400 104 100 Overloaded Moves . | . . . . . . . . . . . . . . . . . . . . . Propulsion Burnouts . | . . . . . . . . . . . . . . . . . . . . . Robots Hopped 4 | . . . . . . . . . . . . . . . . . . . 4 . Cave-ins Triggered . | . . . . . . . . . . . . . . . . . . . . . Exploration Rate (%) 47 | 2 24 70 62 99 63 95 22 55 62 55 17 69 78 7 83 14 1 56 28 32 Regions Visited 20 Branch Regions 10 Pre-discovered Areas 4 | . . 1 . 2 . . . . . 1 . . . . . . . . . . Known Exits Taken 14 | . . . 1 1 1 1 1 1 1 1 1 1 1 . . 1 1 . 1 . Unknown Exits Taken 3 | 1 1 1 . . . . . . . . . . . . . . . . . . Scrap Searched 8 | . . 1 . 3 . 1 . . . 3 . . . . . . . . . . Spaces Dug 39 | . . . 11 3 . 1 9 . . . . . . . . 4 2 6 . 3 Terrain Destroyed 125 | . . . 11 3 . 6 9 31 . . . 43 1 5 . 4 2 7 . 3 Melee 39 | . . . 11 3 . 1 9 . . . . . . . . 4 2 6 . 3 Projectile 12 | . . . . . . . . 5 . . . . 1 5 . . . 1 . . AOE 74 | . . . . . . 5 . 26 . . . 43 . . . . . . . . Terrain Rammed . | . . . . . . . . . . . . . . . . . . . . . Walls Destroyed . | . . . . . . . . . . . . . . . . . . . . . Machines Disabled . | . . . . . . . . . . . . . . . . . . . . . Actions | -11 -10 -10 -9 -9 -9 -8 -8 -8 -8 -8 -6 -6 -6 -5 -5 -5 -4 -4 -3 -3 --------- Run | Yrd Mat Min Mat Min Exi Min Mat Sto Rec Scr Fac Ext Cet Fac Was Fac Fac DSF Res Tes Total 15897 | 15 124 907 1748 1561 287 826 641 451 216 1104 1178 2135 613 434 295 1018 374 219 1306 445 Wait 3411 | . 10 372 275 618 . 254 74 85 11 15 283 287 16 179 37 363 317 69 94 52 Move 11597 | 11 100 487 1333 924 275 560 513 280 204 1086 856 1629 557 242 227 614 52 124 1161 362 Hop 3 | . . . . . . . . . . . . . . . . . . . 3 . Pick Up 82 | 1 4 4 15 4 5 . 5 10 . 1 8 10 1 1 5 6 . 1 1 . Fast Attach 73 | . . . 3 1 . . 2 2 . 1 7 10 5 2 2 7 . 1 22 8 Attach 61 | . 3 7 14 1 . . 4 11 . . 4 5 . . 2 6 . 1 3 . Detach 18 | . . 2 5 . . . . 2 . . 2 . . . 1 1 . . 5 . Swap 48 | . . . 11 3 1 3 3 5 . . 1 17 2 1 . . . . . 1 Drop 88 | . 3 1 6 2 6 . 3 6 . 1 10 13 7 1 6 3 . . 10 10 Fire 324 | 3 3 34 75 3 . 8 15 48 1 . 7 60 25 8 15 . . 12 7 . Melee 177 | . . . 11 4 . 1 22 2 . . . 91 . . . 18 5 11 . 12 Ram 2 | . 1 . . 1 . . . . . . . . . . . . . . . . Kick . | . . . . . . . . . . . . . . . . . . . . . Crush . | . . . . . . . . . . . . . . . . . . . . . Escape Stasis 13 | . . . . . . . . . . . . 13 . . . . . . . . Rewire . | . . . . . . . . . . . . . . . . . . . . . Trap . | . . . . . . . . . . . . . . . . . . . . . Miscellaneous . | . . . . . . . . . . . . . . . . . . . . . Route ------- -11/Scrapyard -10/Materials -10/Mines -9/Materials (discovered 2 exits: *Mat / *Min) -9/Mines (discovered 3 exits: *Mat x2 / *Exi) -9/Exiles (discovered 2 exits: *Min x2) -8/Mines (discovered 2 exits: *Mat x2) -8/Materials -8/Storage (discovered 2 exits: [*Fac] / *Rec) -8/Recycling (discovered 2 exits: *Fac / *Scr) -8/Scraptown -6/Factory (discovered 3 exits: *Fac / [*Low] / *Ext) -6/Extension (discovered 3 exits: *Fac x2 / *Cet) -6/Cetus (discovered 3 exits: *Fac x2 / [*Arc]) -5/Factory -5/Waste -5/Factory (discovered 4 exits: *Fac x4) -4/Factory -4/DSF -3/Research (discovered 3 exits: *Res / *Tes x2) -3/Testing History --------- Turn | Location | Event 1 | -11/Scrapyard | Discovered new exit (range 3) 25 | -11/Scrapyard | Entered Materials 110 | -10/Materials | Discovered new exit (range 16) 121 | -10/Materials | Entered Mines 172 | -10/Mines | Lost 3 parts (1p2n) 256 | -10/Mines | Core integrity fell below 50% 281 | -10/Mines | Found a damaged Exp. Sensor Array with a note attached 283 | -10/Mines | Found Prototype Device 312 | -10/Mines | Build established: Mutant 382 | -10/Mines | Excavation squad dispatched 382 | -10/Mines | A large section of the Mines collapsed 480 | -10/Mines | Identified Exp. Sensor Array 632 | -10/Mines | Excavation squad dispatched 882 | -10/Mines | Excavation squad dispatched 964 | -10/Mines | Discovered new exit (range 15) 1012 | -10/Mines | Learned location of Zion (-6) 1104 | -10/Mines | Entered Materials 1104 | -9/Materials | Evolved 2 slots: Utility x2 1272 | -9/Materials | Discovered new exit (range 10) 2456 | -9/Materials | Identified exit to Materials 2733 | -9/Materials | Repaired Imp. Assault Rifle 2842 | -9/Materials | Repaired Exp. Sensor Array 3015 | -9/Materials | Lost 3 parts (1p1n1w) 3023 | -9/Materials | Discovered new exit (range 6) 3027 | -9/Materials | Identified exit to Mines 3028 | -9/Materials | Entered Mines 3038 | -9/Mines | Met a Derelict testing a Signal Generator 3050 | -9/Mines | Found Signal Generator 3461 | -9/Mines | Build established: Assassin 4098 | -9/Mines | Assembled infested the area 4142 | -9/Mines | Learned Materials non-interactive machine intel 4151 | -9/Mines | Discovered exit to Materials (range 6) 4467 | -9/Mines | Discovered exit to Materials (range 6) 4508 | -9/Mines | Learned location of Storage (-8) 4510 | -9/Mines | Received a Rocket Launcher from a helpful Derelict 4728 | -9/Mines | Deemed a non-threat by the Exiles lab entrance 4728 | -9/Mines | Discovered new exit (range 5) 4731 | -9/Mines | Identified exit to Exiles 4732 | -9/Mines | Entered Exiles 4745 | -9/Exiles | Discovered new exit (range 17) 4756 | -9/Exiles | Met 8R-AWN 4773 | -9/Exiles | Met EX-HEX 4803 | -9/Exiles | Met EX-BIN 4815 | -9/Exiles | Aligned with FarCom system 4816 | -9/Exiles | Given EX-Vault access code 4839 | -9/Exiles | Opened EX-Vault 4846 | -9/Exiles | Found Lightpack 2.0 4864 | -9/Exiles | Found 0b10 Alert Chip 4897 | -9/Exiles | Warned to stay clear of 0b10 Research branches 4925 | -9/Exiles | Met EX-DEC 5005 | -9/Exiles | Discovered new exit (range 10) 5014 | -9/Exiles | Identified exit to Mines 5016 | -9/Exiles | Left Exiles lab with 0b10 Alert Chip 5016 | -9/Exiles | Entered Mines 5322 | -8/Mines | Build established: Skirmisher 5762 | -8/Mines | Discovered exit to Materials (range 6) 5866 | -8/Mines | Discovered exit to Materials (range 6) 5885 | -8/Mines | Entered Materials 5885 | -8/Materials | Evolved 2 slots: Utility x2 5886 | -8/Materials | Loaded intel: 34 non-interactive machine locations 6063 | -8/Materials | Discovered new exit (range 12) 6196 | -8/Materials | Identified exit to Storage 6252 | -8/Materials | Build established: Assassin 6715 | -8/Materials | Entered Storage 6723 | -8/Storage | Met a pair of Derelict thieves 6844 | -8/Storage | Lost 5 parts (2p2n1u) 6928 | -8/Storage | Core integrity fell below 50% 7202 | -8/Storage | Assisted by bots powering up and referring to "LRC-V3" 7362 | -8/Storage | Discovered new exit (range 14) 7500 | -8/Storage | Build established: Commander-Skirmisher 7572 | -8/Storage | Used back door to open Recycling access 7572 | -8/Storage | Discovered new exit (range 5) 7585 | -8/Storage | Identified exit to Recycling 7590 | -8/Storage | Entered Recycling 7590 | -8/Recycling | Accompanied by 9 allies 7902 | -8/Recycling | Discovered new exit (range 8) 7993 | -8/Recycling | Scanned before Scraplab entrance 8097 | -8/Recycling | Entered Scraplab 8118 | -8/Recycling | Discovered new exit (range 2) 8118 | -8/Recycling | Identified exit to Scraptown 8134 | -8/Recycling | Entered Scraptown 8134 | -8/Scraptown | Accompanied by 9 allies 8389 | -8/Scraptown | Turned away by UFD registrar 8431 | -8/Scraptown | Build established: Commander-Mutant 8472 | -8/Scraptown | Visited TADAMA 8569 | -8/Scraptown | Heard Great Nut preacher, LISTEN AND RECITE! 8600 | -8/Scraptown | Visited Comm Corps 8644 | -8/Scraptown | Visited Spacefarers 8673 | -8/Scraptown | Visited Cyclists 8761 | -8/Scraptown | Visited The Evicted 8784 | -8/Scraptown | Visited Assassins FH 9351 | -8/Scraptown | Discovered new exit (range 11) 10225 | -8/Scraptown | Visited Fellowship of the Rings 10870 | -8/Scraptown | Identified exit to Factory 10877 | -8/Scraptown | Entered Factory 10877 | -6/Factory | Accompanied by 9 allies 10877 | -6/Factory | Evolved 4 slots: Propulsion x1, Utility x3 10984 | -6/Factory | Discovered new exit (range 15) 11238 | -6/Factory | Discovered new exit (range 17) 11267 | -6/Factory | Identified exit to Factory 11475 | -6/Factory | Repaired Broken Imp. Heavy Laser 11556 | -6/Factory | Build established: Infiltrator-Ninja 11622 | -6/Factory | Discovered new exit (range 6) 11645 | -6/Factory | Identified exit to Extension 11645 | -6/Factory | Entered Extension 12091 | -6/Extension | Lost 5 parts (1p2n1u1w) 12432 | -6/Extension | Build established: Assassin 12481 | -6/Extension | Lost 3 parts (1n1u1w) 12641 | -6/Extension | Core integrity fell below 50% 12860 | -6/Extension | Rescued a captive Derelict 12861 | -6/Extension | Rescued a captive Derelict 12937 | -6/Extension | Build established: Gladiator 13513 | -6/Extension | Spotted B-75 Beast 13536 | -6/Extension | Destroyed B-75 Beast 13566 | -6/Extension | Spotted B-75 Beast 13702 | -6/Extension | Destroyed B-75 Beast 13745 | -6/Extension | Disrupted transfer network 14379 | -6/Extension | Build established: Commander-Assassin 14403 | -6/Extension | Discovered exit to Factory (range 3) 14427 | -6/Extension | Lost 3 allies 14547 | -6/Extension | Discovered exit to Factory (range 18) 14547 | -6/Extension | Discovered new exit (range 18) 14567 | -6/Extension | Identified exit to Cetus 14571 | -6/Extension | Entered Cetus 14571 | -6/Cetus | Accompanied by 6 allies 14588 | -6/Cetus | Spotted Cetus Guard 14588 | -6/Cetus | Spotted Cetus Guard 14588 | -6/Cetus | Allies destroyed Cetus Guard 14590 | -6/Cetus | Allies destroyed Cetus Guard 14590 | -6/Cetus | Spotted Cetus Guard 14591 | -6/Cetus | Spotted Cetus Guard 14605 | -6/Cetus | Allies destroyed Cetus Guard 14607 | -6/Cetus | Allies destroyed Cetus Guard 14680 | -6/Cetus | Discovered exit to Factory (range 17) 14871 | -6/Cetus | Discovered new exit (range 18) 14905 | -6/Cetus | Spotted Cetus Guard 14906 | -6/Cetus | Spotted Cetus Guard 14908 | -6/Cetus | Spotted Cetus Guard 14908 | -6/Cetus | Spotted Cetus Guard 14909 | -6/Cetus | Allies destroyed Cetus Guard 14911 | -6/Cetus | Build established: Scavenger-Skirmisher 14921 | -6/Cetus | Destroyed Cetus Guard 14928 | -6/Cetus | Core integrity fell below 20% 14931 | -6/Cetus | Destroyed Cetus Guard 14933 | -6/Cetus | Allies destroyed Cetus Guard 14941 | -6/Cetus | Discovered exit to Factory (range 17) 14952 | -6/Cetus | Met Revision 17 15321 | -6/Cetus | Security sweep announced 15564 | -6/Cetus | Entered Factory 15564 | -5/Factory | Evolved 2 slots: Utility x2 16155 | -5/Factory | Sucked down chute 16155 | -5/Factory | Entered Waste 16156 | -5/Waste | Met a frightened Derelict 16229 | -5/Waste | Spotted C-40 Crusher 16229 | -5/Waste | Spotted C-40 Crusher 16249 | -5/Waste | Destroyed C-40 Crusher 16262 | -5/Waste | Crushed by Compactor (1 part destroyed, 1 dropped) 16306 | -5/Waste | Crushed by Compactor (0 parts destroyed, 1 dropped) 16309 | -5/Waste | Crushed by Compactor (1 part destroyed) 16312 | -5/Waste | Crushed by Compactor (0 parts destroyed, 2 dropped) 16317 | -5/Waste | Crushed by Compactor (1 part destroyed) 16319 | -5/Waste | Spotted C-40 Crusher 16323 | -5/Waste | Crushed by Compactor (1 part destroyed, 1 dropped) 16326 | -5/Waste | Crushed by Compactor (1 part destroyed) 16329 | -5/Waste | Crushed by Compactor (0 parts destroyed, 1 dropped) 16356 | -5/Waste | Spotted C-40 Crusher 16357 | -5/Waste | Lost 4 parts (1p1u2w) 16375 | -5/Waste | Spotted C-40 Crusher 16412 | -5/Waste | Spotted C-40 Crusher 16417 | -5/Waste | Discovered new exit (range 22) 16440 | -5/Waste | Identified exit to Factory 16440 | -5/Waste | Entered Factory 16604 | -5/Factory | Build established: Scout 16819 | -5/Factory | Identified exit to Factory 17129 | -5/Factory | Build established: Gladiator 17517 | -5/Factory | Entered another Factory area 17517 | -4/Factory | Evolved 2 slots: Propulsion x1, Utility x1 17912 | -4/Factory | Identified exit to DSF 17916 | -4/Factory | Entered DSF 17966 | -4/DSF | Discovered new exit (range 21) 18015 | -4/DSF | Additional patrols routed to DSF 18185 | -4/DSF | Core integrity fell below 50% 18194 | -4/DSF | Identified exit to Research 18195 | -4/DSF | Entered Research 18195 | -3/Research | Evolved 2 slots: Power x1, Utility x1 18196 | -3/Research | Lost 11 parts (3n6u2w) 18395 | -3/Research | Revision forces began assault on 0b10 18420 | -3/Research | Met up with Revision 17++ 18467 | -3/Research | Found Prototype Processor 18467 | -3/Research | Identified Exp. Targeting Computer 18492 | -3/Research | Build established: Scout 18630 | -3/Research | Discovered new exit (range 11) 18677 | -3/Research | Identified exit to Research 18857 | -3/Research | Identified exit to Testing 18895 | -3/Research | Research terminal network offline 18926 | -3/Research | Found Prototype Protection 18926 | -3/Research | Identified Centrium Heavy Armor Plating 18950 | -3/Research | Entered Testing 18951 | -3/Testing | Maximum security lockdown engaged 19042 | -3/Testing | Spotted Striker 19054 | -3/Testing | Found Prototype Device 19054 | -3/Testing | Identified Exp. Shield Generator 19132 | -3/Testing | Spotted Striker 19135 | -3/Testing | Spotted Alpha 7 19162 | -3/Testing | Core integrity fell below 50% 19163 | -3/Testing | Self-destructed Last Messages --------------- 19154_ Com. Particle Reactor destroyed. 19154_ Penetrated by Slug. 19154_ Critical hit (Destroy). 19154_ Coolant Network destroyed. 19154_ Penetrated by Slug. 19154_ Q-thruster destroyed. 19154_ Penetrated by Slug. 19154_ Slug penetrates Reinforced Barrier. 19156_ Critical hit (Impale). 19156_ Imp. Thermal Defense Suite destroyed. 19157_ Cld. Impulse Thruster destroyed. 19157_ Penetrated by Slug. 19157_ Imp. System Shield destroyed. 19157_ Impulse Thruster destroyed. 19159_ Striker suffers critical hit (Impale). 19161_ C-30 ARC bursts open, deploying its payload. 19161_ G-73 Enforcer unfolds itself. 19161_ G-67 Veteran unfolds itself. [Achievement: Tester] Map ----- +----------------------------------------------------+ | | | | | | | | | | | | | | | | | | | | | | | | | | | | | | | ????????????????????????????????????? | | ????????????????????????????????????? | | ????????????????????????????????????? | | ????????????????????????????????????? | | ????????????##########??????????????? | | ????????????#""""""""#??????????????? | | ????????????#" """"#???????????#### | | ????????????#"g &"#???????????# | | ???????????##glig ""#???????????#] | | ???????????#7Kgb """#???????????# | | ???????????#@Klgg """#???????????#=]! | | ???????????####lg#####???????????#]!! | | ?????????????##Cb##??????????????#]! | | ?????????????# #??????????????#### | | ?????????????## ##??????????????# | | ??????????????# #???????????????# " | | ??????????????" #########???????# " | | ??????????????# ## #???????# " | | ??????????????# b##""" #???????# " | | ??????????????# ##""" #???????# " | | ??????????????# ##""" #???????# | | ??????????????#g ## #???????# | | ?????????????## ## #???????# | | ?????????????# ###/############### | | ?????????????# "T | | ?????????????# "" w | | ?????????????# "%""#### ############# | | ??????????#####C###"#?# #???????????? | | ??????????# %##?# #???????????? | | ??????????# #??# #???????????? | | ??????????# #??# #????######## | | ??????????# """ #??# #????# """ | | ??????????# """ #??# #????# ""R" | | ??????????# """ #### #????# "" " ! | | ??????????# """ + #????# | +----------------------------------------------------+ Best States ------------- Heat Dissipation 136 Energy Generation 25 Energy Capacity 735 Matter Stores 600 Matter Capacity 600 Sight Range 22 Robot Scan Range 20 Terrain Scan Range 20 Terrain Scan Density 10 ECM Strength 1 Jamming Range 12 Cloak Strength 3 Additional Mass Support 9 Armor Coverage 450 Resistance: KI 25 Resistance: TH 25 Propulsion Shielding 66 Evasion (%) 76 Targeting Accuracy 12 Melee Accuracy 8 Target Analysis 8 Armor Integrity Analysis 30 Recoil Reduction 2 Force Boost 20 Defensive Hacking 12 Item Schematics ----------------- None Robot Schematics ------------------ None Fabricated ------------ Nothing Alien Tech Used ----------------- None Achievements -------------- Dodgeball, But With Guns Explorer Knowing Is Half The Battle Ooh, Shiny! Revising The Future Revolutionary Research Tester Challenges ------------ None Game ------ Seed BombActuatorRifle Manual? 0 Play Time 02:46:42 Cumulative 87.5 hours Start 2024.09.08 @ 13:59:29 End 2024.09.11 @ 20:21:40 Sessions 21 Manual Loads 0 Difficulty Rogue Special Mode None Game No. 140 Rogue 136 Adventurer 4 Explorer 0 Win Type - Total 0 Types 0/0/0/0/0/0/0/0/0 Lore% 40 Gallery% 52 Achievement% 40 Wizard Run 0 Options --------- Layout 2 ASCII 0 Keyboard 0 Movement Mouse Keybinds 0 Fullscreen 2 Font 24/Smallcaps Map View 50x44 Zoom Use 0% Tactical HUD 1 Map Filters NONE Filters NONE Steam 1 RUN: 73dbf496-616c-4e6b-8ff1-dab5adfb4e53